{"text_format":"3","workbook":"xlsx","n_sheets":1,"sheets":["тестовый"],"not_rendered":{"external_links":1},"read":"whole","date_system":"1900"}

{"sheet":"тестовый","index":0,"n_rows":42,"n_cols":17,"rows_kept":42,"merged":[[0,0,0,16]]}
["Протокол по итогам муниципального этапа ВсОШ по предмету \"ГЕОГРАФИЯ\"  Менделеевского муниципального района в 2019-2020 учебном году "]
["№ п/п","Муниципалитет","Полное наименование образовательного учреждения (по уставу)","Фамилия","Имя","Отчество","Класс","Дата рождения","Пол","Балл","Апеляционный балл","Итоговый балл","Максимальный балл","Статус","Фамилия, имя, отчество педагога, подготовившего участника олимпиады","Полное наименование образовательного учреждения (по уставу)","Предмет"]
[1,"Менделеевский ","МБОУ \"СОШ №1\"","Мельников ","Виктор",null,7,null,"м",23.5,null,23.5,48,"призер","Максютина А.И.","МБОУ \"СОШ №1\"",{"$f":"[1]тестовый!Q3","v":"география"}]
[2,"Менделеевский ","МБОУ \"СОШ №1\"","Колпаков ","Эдуард",null,7,null,"м",20.75,null,{"$f":"J4","v":20.75},48,"участник","Максютина А.И.","МБОУ \"СОШ №1\"",{"$f":"[1]тестовый!Q4","v":"география"}]
[3,"Менделеевский ","МБОУ \"СОШ №1\"","Камашев","Александр",null,7,null,"м",16.5,null,16.5,48,"участник","Максютина А.И.","МБОУ \"СОШ №1\"",{"$f":"[1]тестовый!Q5","v":"география"}]
[4,"Менделеевский ","МБОУ \"Ильнетская СОШ\"","Иванова","Татьяна",null,7,null,"ж",15.75,null,15.75,48,"участник","Егоров М.В.","МБОУ \"Ильнетская СОШ\"",{"$f":"[1]тестовый!Q6","v":"география"}]
[5,"Менделеевский ",{"$f":"[1]тестовый!C33","v":"МБОУ \"Тураевская СОШ\""},{"$f":"[1]тестовый!D33","v":"Даилова"},{"$f":"[1]тестовый!E33","v":"Ралина"},null,{"$f":"[1]тестовый!G33","v":7},null,{"$f":"[1]тестовый!I33","v":"ж"},15,null,15,48,"участник",{"$f":"[1]тестовый!O33","v":"Минеханов Ф.М."},{"$f":"[1]тестовый!P33","v":"МБОУ \"Тураевская СОШ\""},{"$f":"[1]тестовый!Q15","v":"география"}]
[6,"Менделеевский ",{"$f":"[1]тестовый!C27","v":"МБОУ \"СОШ №3\""},{"$f":"[1]тестовый!D27","v":"Абдуллаева"},{"$f":"[1]тестовый!E27","v":"Яна"},null,{"$f":"[1]тестовый!G27","v":7},null,{"$f":"[1]тестовый!I27","v":"ж"},15,null,15,48,"участник",{"$f":"[1]тестовый!O27","v":"Ганеева Р.Ю."},{"$f":"[1]тестовый!P27","v":"МБОУ \"СОШ №3\""},"география"]
[7,"Менделеевский ",{"$f":"[1]тестовый!C26","v":"МБОУ \"СОШ №3\""},{"$f":"[1]тестовый!D26","v":"Александрова"},{"$f":"[1]тестовый!E26","v":"Ксения"},null,{"$f":"[1]тестовый!G26","v":7},null,{"$f":"[1]тестовый!I26","v":"ж"},13,null,13,48,"участник",{"$f":"[1]тестовый!O26","v":"Ганеева Р.Ю."},{"$f":"[1]тестовый!P26","v":"МБОУ \"СОШ №3\""},{"$f":"[1]тестовый!Q24","v":"география"}]
[8,"Менделеевский ",{"$f":"[1]тестовый!C25","v":"МБОУ \"СОШ №2\""},{"$f":"[1]тестовый!D25","v":"Мубаракшин"},{"$f":"[1]тестовый!E25","v":"Рузалин"},null,{"$f":"[1]тестовый!G25","v":7},null,{"$f":"[1]тестовый!I25","v":"м"},11,null,11,48,"участник",{"$f":"[1]тестовый!O25","v":"Яковлева Н.Г."},{"$f":"[1]тестовый!P25","v":"МБОУ \"СОШ №2\""},{"$f":"[1]тестовый!Q25","v":"география"}]
[9,"Менделеевский ",{"$f":"[1]тестовый!C24","v":"МБОУ \"СОШ №2\""},{"$f":"[1]тестовый!D24","v":"Манин"},{"$f":"[1]тестовый!E24","v":"Алексей "},null,{"$f":"[1]тестовый!G24","v":7},null,{"$f":"[1]тестовый!I24","v":"м"},11,null,11,48,"участник",{"$f":"[1]тестовый!O24","v":"Яковлева Н.Г."},{"$f":"[1]тестовый!P24","v":"МБОУ \"СОШ №2\""},{"$f":"[1]тестовый!Q26","v":"география"}]
[10,"Менделеевский ",{"$f":"[1]тестовый!C19","v":"МБОУ \"Камаевская СОШ\""},{"$f":"[1]тестовый!D19","v":"Никитина "},{"$f":"[1]тестовый!E19","v":"Азалия"},null,{"$f":"[1]тестовый!G19","v":7},null,{"$f":"[1]тестовый!I19","v":"ж"},10.75,null,10.75,48,"участник",{"$f":"[1]тестовый!O19","v":"Ахунова В.М."},{"$f":"[1]тестовый!P19","v":" МБОУ «Камаеввская основная общеобразовательная школа» Менделеевского муниципального района Республики Татарстан "},{"$f":"[1]тестовый!Q27","v":"география"}]
[11,"Менделеевский ",{"$f":"[1]тестовый!C15","v":"МБОУ \"Старо-Гришкинская ООШ\""},{"$f":"[1]тестовый!D15","v":"Гридина"},{"$f":"[1]тестовый!E15","v":"Дарья"},null,{"$f":"[1]тестовый!G15","v":7},null,{"$f":"[1]тестовый!I15","v":"ж"},9.75,null,9.75,48,"участник",{"$f":"[1]тестовый!O15","v":"Буланова Л.А."},{"$f":"[1]тестовый!P15","v":"МБОУ \"Старо-Гришкинская ООШ\""},"география"]
[12,"Менделеевский ",{"$f":"[1]тестовый!C6","v":"МБОУ \"Гимназия №1\""},{"$f":"[1]тестовый!D6","v":"Нургалиева"},{"$f":"[1]тестовый!E6","v":"Ралина"},null,{"$f":"[1]тестовый!G6","v":7},null,{"$f":"[1]тестовый!I6","v":"ж"},8.75,null,8.75,48,"участник",{"$f":"[1]тестовый!O6","v":"Сахипова Е.А."},{"$f":"[1]тестовый!P6","v":"МБОУ \"Гимназия №1\""},"география"]
[13,"Менделеевский ",{"$f":"[1]тестовый!C5","v":"МБОУ \"Гимназия №1\""},{"$f":"[1]тестовый!D5","v":"Костромина "},{"$f":"[1]тестовый!E5","v":"Севиля"},null,{"$f":"[1]тестовый!G5","v":7},null,{"$f":"[1]тестовый!I5","v":"ж"},8.5,null,8.5,48,"участник",{"$f":"[1]тестовый!O5","v":"Сахипова Е.А."},{"$f":"[1]тестовый!P5","v":"МБОУ \"Гимназия №1\""},"география"]
[14,"Менделеевский ",{"$f":"[1]тестовый!C4","v":"МБОУ \"Гимназия №1\""},{"$f":"[1]тестовый!D4","v":"Шамилов "},{"$f":"[1]тестовый!E4","v":"Ильшат "},null,{"$f":"[1]тестовый!G4","v":7},null,{"$f":"[1]тестовый!I4","v":"м"},8,null,8,48,"участник",{"$f":"[1]тестовый!O4","v":"Сахипова Е.А."},{"$f":"[1]тестовый!P4","v":"МБОУ \"Гимназия №1\""},"география"]
[15,"Менделеевский ",{"$f":"[1]тестовый!C3","v":"МБОУ \"Бизякинская СОШ\""},{"$f":"[1]тестовый!D3","v":"Усиков"},{"$f":"[1]тестовый!E3","v":"Вадим"},null,{"$f":"[1]тестовый!G3","v":7},null,{"$f":"[1]тестовый!I3","v":"м"},7.5,null,7.5,48,"участник",{"$f":"[1]тестовый!O3","v":"Искакова Н.М."},{"$f":"[1]тестовый!P3","v":"МБОУ \"Бизякинская СОШ\""},"география"]
[16,"Менделеевский ","МБОУ \"Ижевская СОШ\"","Крещенов","Антон",null,8,null,"м",29.25,null,29.25,61,"призер","Алексеева Т.И.","МБОУ \"Ижевская СОШ\"","география"]
[17,"Менделеевский ",{"$f":"[1]тестовый!C11","v":"МБОУ \"Гимназия №1\""},{"$f":"[1]тестовый!D11","v":"Крюков"},{"$f":"[1]тестовый!E11","v":"Иван"},null,{"$f":"[1]тестовый!G11","v":8},null,{"$f":"[1]тестовый!I11","v":"м"},19.5,null,19.5,61,"участник",{"$f":"[1]тестовый!O11","v":"Сахипова Е.А."},{"$f":"[1]тестовый!P11","v":"МБОУ \"Гимназия №1\""},"география"]
[18,"Менделеевский ","МБОУ \"СОШ №1\"","Муллахметов","Даниф",null,8,null,"м",17,null,17,61,"участник","Максютина А.И.","МБОУ \"СОШ №1\"","география"]
[19,"Менделеевский ",{"$f":"[1]тестовый!C10","v":"МБОУ \"Гимназия №1\""},"Ростова","Эвелина",null,8,null,"ж",13.75,null,13.75,61,"участник",{"$f":"[1]тестовый!O10","v":"Сахипова Е.А."},{"$f":"[1]тестовый!P10","v":"МБОУ \"Гимназия №1\""},"география"]
[20,"Менделеевский ",{"$f":"[1]тестовый!C23","v":"МБОУ \"Псеевская СОШ\"\""},{"$f":"[1]тестовый!D23","v":"Шириева "},{"$f":"[1]тестовый!E23","v":"Эльвина"},null,{"$f":"[1]тестовый!G23","v":8},null,{"$f":"[1]тестовый!I23","v":"ж"},13,null,13,61,"участник",{"$f":"[1]тестовый!O23","v":"Мухаматгалеева Х.Ф."},{"$f":"[1]тестовый!P23","v":"МБОУ \"Псеевская СОШ\""},"география"]
[21,"Менделеевский ","МБОУ \"СОШ №1\"","Гареев","Тимур",null,8,null,"м",12.25,null,12.25,61,"участник","Максютина А.И.","МБОУ \"СОШ №1\"","география"]
[22,"Менделеевский ",{"$f":"[1]тестовый!C21","v":"МБОУ \"Монашевская СОШ\""},{"$f":"[1]тестовый!D21","v":"Афанасьев "},{"$f":"[1]тестовый!E21","v":"Родион"},null,{"$f":"[1]тестовый!G21","v":8},null,{"$f":"[1]тестовый!I21","v":"м"},11.5,null,11.5,61,"участник",{"$f":"[1]тестовый!O21","v":"Иванова Н.Н."},{"$f":"[1]тестовый!P21","v":"МБОУ \"Монашевская СОШ\""},"география"]
[23,"Менделеевский ","МБОУ \"СОШ №1\"","Прокопьева","Виктория",null,8,null,"ж",10.75,null,10.75,61,"участник","Максютина А.И.","МБОУ \"СОШ №1\"","география"]
[24,"Менделеевский ",{"$f":"[1]тестовый!C28","v":"МБОУ \"СОШ №3\""},"Муллахметов",{"$f":"[1]тестовый!E28","v":"Эмиль"},null,{"$f":"[1]тестовый!G28","v":8},null,{"$f":"[1]тестовый!I28","v":"м"},8,null,8,61,"участник",{"$f":"[1]тестовый!O28","v":"Ганеева Р.Ю."},{"$f":"[1]тестовый!P28","v":"МБОУ \"СОШ №3\""},"география"]
[25,"Менделеевский ","МБОУ \"Камаевская СОШ\"","Нуреев","Артем",null,{"$f":"[1]тестовый!G8","v":8},null,"м",7.5,null,7.5,61,"участник","Ахунова В.М.","МБОУ \"Камаевская СОШ\"","география"]
[26,"Менделеевский ",{"$f":"[1]тестовый!C29","v":"МБОУ \"СОШ №3\""},{"$f":"[1]тестовый!D29","v":"Пух"},{"$f":"[1]тестовый!E29","v":"Евгенипй"},null,{"$f":"[1]тестовый!G29","v":9},null,{"$f":"[1]тестовый!I29","v":"м"},16,null,16,72,"участник",{"$f":"[1]тестовый!O29","v":"Ганеева Р.Ю."},{"$f":"[1]тестовый!P14","v":"МБОУ \"Гимназия №1\""},"география"]
[27,"Менделеевский ",{"$f":"[1]тестовый!C12","v":"МБОУ \"Гимназия №1\""},{"$f":"[1]тестовый!D12","v":"Муллагалиева"},{"$f":"[1]тестовый!E12","v":"Диляра"},null,{"$f":"[1]тестовый!G12","v":9},null,{"$f":"[1]тестовый!I12","v":"ж"},15.5,null,15.5,72,"участник",{"$f":"[1]тестовый!O12","v":"Сахипова Е.А."},"МБОУ \"СОШ №1\"","география"]
[28,"Менделеевский ","МБОУ \"СОШ №1\"","Гусев","Эмиль",null,9,null,"м",11.5,null,11.5,72,"участник","Максимова А.Г.",{"$f":"[1]тестовый!P12","v":"МБОУ \"Гимназия №1\""},"география"]
[29,"Менделеевский ",{"$f":"[1]тестовый!C18","v":"МБОУ \"Ижевская СОШ\""},{"$f":"[1]тестовый!D18","v":"Хабибуллин"},{"$f":"[1]тестовый!E18","v":"Самат"},null,{"$f":"[1]тестовый!G18","v":9},null,{"$f":"[1]тестовый!I18","v":"м"},11,null,11,72,"участник",{"$f":"[1]тестовый!O18","v":"Алексеева Т.И."},{"$f":"[1]тестовый!P16","v":"МБОУ \"Енабердинская СОШ\""},"география"]
[30,"Менделеевский ",{"$f":"[1]тестовый!C16","v":"МБОУ \"Енабердинская СОШ\""},{"$f":"[1]тестовый!D16","v":"Ефимов "},{"$f":"[1]тестовый!E16","v":"Максим"},null,{"$f":"[1]тестовый!G16","v":9},null,{"$f":"[1]тестовый!I16","v":"м"},10.5,null,10.5,72,"участник",{"$f":"[1]тестовый!O16","v":"Егоров М.В."},{"$f":"[1]тестовый!P18","v":"МБОУ \"Ижевская СОШ\""},"география"]
[31,"Менделеевский ","МБОУ \"СОШ №1\"","Латфуллин","Александр",null,9,null,"м",10.5,null,10.5,72,"участник","Максимова А.Г.",{"$f":"[1]тестовый!P13","v":"МБОУ \"Гимназия №1\""},"география"]
[32,"Менделеевский ",{"$f":"[1]тестовый!C14","v":"МБОУ \"Гимназия №1\""},{"$f":"[1]тестовый!D14","v":"Кириллова"},{"$f":"[1]тестовый!E14","v":"Полина"},null,{"$f":"[1]тестовый!G14","v":9},null,{"$f":"[1]тестовый!I14","v":"ж"},9.5,null,9.5,72,"участник",{"$f":"[1]тестовый!O14","v":"Сахипова Е.А."},{"$f":"[1]тестовый!P29","v":"МБОУ \"СОШ №3\""},"география"]
[33,"Менделеевский ","МБОУ \"СОШ №1\"","Гильфанов ","Ренальд Рунарович",null,9,null,"м",8,null,8,72,"участник","Максимова А.Г.","МБОУ \"СОШ №1\"","география"]
[34,"Менделеевский ",{"$f":"[1]тестовый!C13","v":"МБОУ \"Гимназия №1\""},{"$f":"[1]тестовый!D13","v":"Переина"},{"$f":"[1]тестовый!E13","v":"Злата "},null,{"$f":"[1]тестовый!G13","v":9},null,{"$f":"[1]тестовый!I13","v":"ж"},6.5,null,6.5,72,"участник",{"$f":"[1]тестовый!O13","v":"Сахипова Е.А."},"МБОУ \"СОШ №1\"","география"]
[35,"Менделеевский ",{"$f":"[1]тестовый!C22","v":"МБОУ \"Монашевская СОШ\""},{"$f":"[1]тестовый!D22","v":"Никандрова"},{"$f":"[1]тестовый!E22","v":"Анастасия"},null,{"$f":"[1]тестовый!G22","v":10},null,{"$f":"[1]тестовый!I22","v":"ж"},16,null,16,96,"участник",{"$f":"[1]тестовый!O22","v":"Иванова Н.Н."},"МБОУ \"СОШ №1\"","география"]
[36,"Менделеевский ","МБОУ \"СОШ №1\"","Каскеева","Полина",null,10,null,"ж",2,null,2,96,"участник","Максимова А.Г.",{"$f":"[1]тестовый!P22","v":"МБОУ \"Монашевская СОШ\""},"география"]
[37,"Менделеевский ","МБОУ \"СОШ №1\"","Азин ","Олег",null,10,null,"м",1.25,null,1.25,96,"участник","Максимова А.Г.","МБОУ \"СОШ №1\"","география"]
[38,"Менделеевский ","МБОУ \"СОШ №1\"","Гагарина","Ангелина",null,11,null,"ж",17,null,17,107,"участник","Максимова А.Г.","МБОУ \"СОШ №1\"","география"]
[39,"Менделеевский ",{"$f":"[1]тестовый!C31","v":"МБОУ \"СОШ №3\""},{"$f":"[1]тестовый!D31","v":"Кривилева"},{"$f":"[1]тестовый!E31","v":"Анастасия"},null,{"$f":"[1]тестовый!G31","v":11},null,{"$f":"[1]тестовый!I31","v":"ж"},8.5,null,8.5,107,"участник",{"$f":"[1]тестовый!O31","v":"Ганеева Р.Ю."},{"$f":"[1]тестовый!P31","v":"МБОУ \"СОШ №3\""},"география"]
[40,"Менделеевский ","МБОУ \"СОШ №1\"","Солдатова","Полина",null,11,null,"ж",8.5,null,8.5,107,"участник","Максимова А.Г.","МБОУ \"СОШ №1\"","география"]